Workbook

Sheet ACT
A1: INSTITUTO MUNICIPAL DE PLANEACIÓN DE IRAPUATO, GTO. Estado de Actividades Del 1 de Enero al 31 de Diciembre de 2025 (Cifras en Pesos)
A2: Concepto | B2: 2025 | C2: 2024
A3: INGRESOS Y OTROS BENEFICIOS
A4: Ingresos de Gestión | B4: =SUM(B5:B11) -> 0 | C4: =SUM(C5:C11) -> 0
A5: Impuestos | B5: 0 | C5: 0 | D5: 4110
A6: Cuotas y Aportaciones de Seguridad Social | B6: 0 | C6: 0 | D6: 4120
A7: Contribuciones de Mejoras | B7: 0 | C7: 0 | D7: 4130
A8: Derechos | B8: 0 | C8: 0 | D8: 4140
A9: Productos | B9: 0 | C9: 0 | D9: 4150
A10: Aprovechamientos | B10: 0 | C10: 0 | D10: 4160
A11: Ingresos por Venta de Bienes y Prestación de Servicios | B11: 0 | C11: 0 | D11: 4170
A13: Participaciones, Aportaciones, Convenios, Incentivos Derivados de la Colaboración Fiscal, Fondos Distintos de Aportaciones, Transferencias, Asignaciones, Subsidios y Subvenciones, y Pensiones y Jubilaciones | B13: =SUM(B14:B15) -> 29,060,264 | C13: =SUM(C14:C15) -> 17,450,895
A14: Participaciones, Aportaciones, Convenios, Incentivos Derivados de la Colaboración Fiscal y Fondos Distintos de Aportaciones | B14: 0 | C14: 0 | D14: 4210
A15: Transferencias, Asignaciones, Subsidios y Subvenciones, y Pensiones y Jubilaciones | B15: 29,060,264 | C15: 17,450,895 | D15: 4220
A17: Otros Ingresos y Beneficios | B17: =SUM(B18:B22) -> 0 | C17: =SUM(C18:C22) -> 0
A18: Ingresos Financieros | B18: 0 | C18: 0 | D18: 4310
A19: Incremento por Variación de Inventarios | B19: 0 | C19: 0 | D19: 4320
A20: Disminución del Exceso de Estimaciones por Pérdida o Deterioro u Obsolescencia | B20: 0 | C20: 0 | D20: 4330
A21: Disminución del Exceso de Provisiones | B21: 0 | C21: 0 | D21: 4340
A22: Otros Ingresos y Beneficios Varios | B22: 0 | C22: 0 | D22: 4390
A24: Total de Ingresos y Otros Beneficios | B24: =SUM(B4+B13+B17) -> 29,060,264 | C24: =SUM(C4+C13+C17) -> 17,450,895
A26: GASTOS Y OTRAS PÉRDIDAS
A27: Gastos de Funcionamiento | B27: =SUM(B28:B30) -> 23,873,678 | C27: =SUM(C28:C30) -> 9,608,456
A28: Servicios Personales | B28: 8,153,936 | C28: 5,929,486 | D28: 5110
A29: Materiales y Suministros | B29: 299,492 | C29: 185,825 | D29: 5120
A30: Servicios Generales | B30: 15,420,250 | C30: 3,493,146 | D30: 5130
A32: Transferencias, Asignaciones, Subsidios y Otras Ayudas | B32: =SUM(B33:B41) -> 0 | C32: =SUM(C33:C41) -> 0
A33: Transferencias Internas y Asignaciones al Sector Público | B33: 0 | C33: 0 | D33: 5210
A34: Transferencias al Resto del Sector Público | B34: 0 | C34: 0 | D34: 5220
A35: Subsidios y Subvenciones | B35: 0 | C35: 0 | D35: 5230
A36: Ayudas Sociales | B36: 0 | C36: 0 | D36: 5240
A37: Pensiones y Jubilaciones | B37: 0 | C37: 0 | D37: 5250
A38: Transferencias a Fideicomisos, Mandatos y Contratos Análogos | B38: 0 | C38: 0 | D38: 5260
A39: Transferencias a la Seguridad Social | B39: 0 | C39: 0 | D39: 5270
A40: Donativos | B40: 0 | C40: 0 | D40: 5280
A41: Transferencias al Exterior | B41: 0 | C41: 0 | D41: 5290
A43: Participaciones y Aportaciones | B43: =SUM(B44:B46) -> 0 | C43: =SUM(C44:C46) -> 0
A44: Participaciones | B44: 0 | C44: 0 | D44: 5310
A45: Aportaciones | B45: 0 | C45: 0 | D45: 5320
A46: Convenios | B46: 0 | C46: 0 | D46: 5330
A48: Intereses, Comisiones y Otros Gastos de la Deuda Pública | B48: =SUM(B49:B53) -> 0 | C48: =SUM(C49:C53) -> 0
A49: Intereses de la Deuda Pública | B49: 0 | C49: 0 | D49: 5410
A50: Comisiones de la Deuda Pública | B50: 0 | C50: 0 | D50: 5420
A51: Gastos de la Deuda Pública | B51: 0 | C51: 0 | D51: 5430
A52: Costo por Coberturas | B52: 0 | C52: 0 | D52: 5440
A53: Apoyos Financieros | B53: 0 | C53: 0 | D53: 5450
A55: Otros Gastos y Pérdidas Extraordinarias | B55: =SUM(B56:B59) -> 1,444,876 | C55: =SUM(C56:C59) -> 263,412
A56: Estimaciones, Depreciaciones, Deterioros, Obsolescencia y Amortizaciones | B56: 1,444,876 | C56: 263,412 | D56: 5510
A57: Provisiones | B57: 0 | C57: 0 | D57: 5520
A58: Disminución de Inventarios | B58: 0 | C58: 0 | D58: 5530
A59: Otros Gastos | B59: 0 | C59: 0 | D59: 5590
A61: Inversión Pública | B61: =SUM(B62) -> 0 | C61: =SUM(C62) -> 0
A62: Inversión Pública no Capitalizable | B62: 0 | C62: 0 | D62: 5610
A64: Total de Gastos y Otras Pérdidas | B64: =B61+B55+B48+B43+B32+B27 -> 25,318,554 | C64: =C61+C55+C48+C43+C32+C27 -> 9,871,869
A66: Resultados del Ejercicio (Ahorro/Desahorro) | B66: =B24-B64 -> 3,741,710 | C66: =C24-C64 -> 7,579,027
A69: Bajo protesta de decir verdad declaramos que los Estados Financieros y sus notas, son razonablemente correctos y son responsabilidad del emisor.
